[Event "SixDays Budapest January IM-A 2025"]
[Site "Budapest"]
[Date "2025.01.29"]
[Round "6.2"]
[White "Golubovskis, Maksims"]
[Black "Kiremitciyan, Ari"]
[Result "0-1"]
[Annotator "RC"]
[ECO "D35"]
[WhiteElo "2237"]
[BlackElo "2251"]
[PlyCount "68"]
[EventDate "2025.01.24"]
[EventType "tourn"]
[EventCountry "HUN"]
[SourceTitle "playchess.com"]
[Source "ChessBase"]
[SourceQuality "1"]
[TimeControl "5400+30"]

1. c4 {[%emt 0:05:37]} e6 {[%emt 0:01:53]} 2. Nc3 {[%emt 0:00:37]} d5 {[%emt 0:00:16]} 3. d4 {[%emt 0:00:52]} Nf6 {[%emt 0:00:36]} 4. cxd5 {[%emt 0:00:08]} exd5 {[%emt 0:00:08]} 5. Bg5 {[%emt 0:00:17]} c6 {[%emt 0:00:07]} 6. e3 {[%emt 0:00:29]} Be6 {[%emt 0:01:02]} 7. Bd3 {[%emt 0:00:55]} Nbd7 {[%emt 0:01:25]} 8. Qc2 {[%emt 0:05:08]} h6 {[%emt 0:00:19]} 9. Bh4 {[%emt 0:00:36]} g5 {[%emt 0:00:05]} 10. Bg3 {[%emt 0:00:09]} Nh5 {[%emt 0:00:09]} 11. Nge2 {[%emt 0:03:30]} Nxg3 {[%emt 0:01:15]} 12. Nxg3 {[%emt 0:00:18]} h5 {[%emt 0:04:55]} 13. O-O-O {[%emt 0:08:38]} h4 {[%emt 0:07:07]} 14. Nge2 {[%emt 0:03:16]} Qe7 {[%emt 0:07:09]} 15. e4 {[%emt 0:16:27]} Nb6 {[%emt 0:03:59]} 16. Kb1 {[%emt 0:09:27]} O-O-O {[%emt 0:02:04]} 17. Rhe1 {[%emt 0:06:09]} Qc7 {[%emt 0:03:16]} 18. e5 {[%emt 0:01:18]} Kb8 {[%emt 0:01:22]} 19. f4 {[%emt 0:02:30]} gxf4 {[%emt 0:00:25]} 20. Nxf4 {[%emt 0:00:09]} a6 {[%emt 0:05:52]} 21. Nce2 {[%emt 0:03:59]} c5 {[%emt 0:08:36]} 22. Bf5 {[%emt 0:05:36]} Rh6 {[%emt 0:05:16]} 23. Ka1 {[%emt 0:11:01]} Nc4 {[%emt 0:03:25]} 24. Nc1 {[%emt 0:06:19]} cxd4 {[%emt 0:03:51]} 25. Bxe6 {[%emt 0:03:15]} fxe6 {[%emt 0:00:29]} 26. Nb3 {[%emt 0:00:56]} Qb6 {[%emt 0:08:48]} 27. Nxd4 {[%emt 0:00:40]} Bc5 {[%emt 0:05:28]} 28. Ndxe6 {[%emt 0:02:14]} Rxe6 {[%emt 0:00:47]} 29. Nxd5 {[%emt 0:00:21]} Rxd5 {[%emt 0:10:33]} 30. Rxd5 {[%emt 0:00:01]} Bd4 {[%emt 0:00:32]} 31. Qb3 {[%emt 0:00:05]} Bxb2+ {[%emt 0:00:26]} 32. Kb1 {[%emt 0:00:03]} Qc7 {[%emt 0:02:03]} 33. Rd6 {[%emt 0:03:18]} Rxd6 {[%emt 0:00:12]} 34. exd6 {[%emt 0:00:11]} Qh7+ {[%emt 0:00:01]} 0-1

[Event "SixDays Budapest January IM-A 2025"]
[Site "Budapest"]
[Date "2025.01.29"]
[Round "6.3"]
[White "Varga, Zoltan"]
[Black "Papp, Levente"]
[Result "0-1"]
[Annotator "RC"]
[ECO "C00"]
[WhiteElo "2304"]
[BlackElo "2386"]
[PlyCount "50"]
[EventDate "2025.01.24"]
[EventType "tourn"]
[EventCountry "HUN"]
[SourceTitle "playchess.com"]
[Source "ChessBase"]
[SourceQuality "1"]
[TimeControl "5400+30"]

1. e4 {[%emt 0:13:08]} e6 {[%emt 0:00:49]} 2. Qe2 {[%emt 0:00:04]} c5 {[%emt 0:00:46]} 3. f4 {[%emt 0:02:46]} Nc6 {[%emt 0:01:31]} 4. Nf3 {[%emt 0:00:07]} g6 {[%emt 0:01:26]} 5. Na3 {[%emt 0:01:59]} d6 {[%emt 0:02:22]} 6. e5 {[%emt 0:11:46]} Nh6 {[%emt 0:17:41]} 7. g3 {[%emt 0:10:56]} Bg7 {[%emt 0:04:01]} 8. Nc4 {[%emt 0:01:20]} dxe5 {[%emt 0:01:35]} 9. Ncxe5 {[%emt 0:01:42]} Nxe5 {[%emt 0:01:25]} 10. Nxe5 {[%emt 0:01:07]} O-O {[%emt 0:00:20]} 11. Bg2 {[%emt 0:00:02]} Nf5 {[%emt 0:06:51]} 12. O-O {[%emt 0:00:27]} Qc7 {[%emt 0:04:25]} 13. c3 {[%emt 0:02:30]} Bd7 {[%emt 0:01:06]} 14. Nxd7 {[%emt 0:07:04]} Qxd7 {[%emt 0:02:00]} 15. a4 {[%emt 0:00:01]} Rab8 {[%emt 0:04:23]} 16. b3 {[%emt 0:04:11]} Rfd8 {[%emt 0:03:53]} 17. Kh1 {[%emt 0:00:10]} h5 {[%emt 0:11:36]} 18. a5 {[%emt 0:01:35]} b5 {[%emt 0:02:25]} 19. axb6 {[%emt 0:00:06]} axb6 {[%emt 0:00:04]} 20. Rb1 {[%emt 0:10:54]} b5 {[%emt 0:02:56]} 21. b4 {[%emt 0:00:05]} c4 {[%emt 0:00:24]} 22. Ra1 {[%emt 0:00:04]} Rb6 {[%emt 0:07:58]} 23. Qf2 {[%emt 0:00:23]} Rd6 {[%emt 0:02:11]} 24. Ra7 {[%emt 0:00:08]} Qe8 {[%emt 0:00:16]} 25. Re1 {[%emt 0:03:05]} Nd4 {[%emt 0:02:40]} 0-1

[Event "SixDays Budapest January IM-A 2025"]
[Site "Budapest"]
[Date "2025.01.29"]
[Round "6.4"]
[White "Kustar, Sandor"]
[Black "Chubakov, Sultan"]
[Result "0-1"]
[Annotator "TA"]
[ECO "A06"]
[WhiteElo "2240"]
[BlackElo "2237"]
[PlyCount "84"]
[EventDate "2025.01.24"]
[EventType "tourn"]
[EventCountry "HUN"]
[SourceTitle "playchess.com"]
[Source "ChessBase"]
[SourceQuality "1"]
[TimeControl "5400+30"]

{[%evp 10,84,0,-2,0,-15,-7,0,19,14,32,0,24,18,27,11,16,0,0,0,0,-11,-4,-16,-13,-11,-14,-18,-15,-28,-29,-29,-29,-40,-38,-61,-6,-25,-25,-36,-35,-62,-61,-128,-87,-145,-126,-155,-158,-138,-158,-159,-159,-162,-161,-161,-150,-158,-107,-114,-91,-86,-83,-100,-95,-151,-104,-149,-145,-213,-191,-212,-219,-838,-823,-808,-785]} 1. Nf3 {[%emt 0:00:07]} d5 {[%emt 0:00:04]} 2. g3 {[%emt 0:00:18]} Nd7 {[%emt 0:00:04]} 3. Bg2 {[%emt 0:00:53]} e5 {[%emt 0:00:18]} 4. d3 {[%emt 0:00:26]} Ngf6 {[%emt 0:00:53]} 5. O-O {[%emt 0:00:40]} Bd6 {[%emt 0:03:13]} 6. Nbd2 {[%emt 0:01:54]} O-O {[%emt 0:03:34] A07: Réti Opening: New York and Capablanca Systems.} 7. e4 {[%emt 0:00:35]} dxe4 {[%emt 0:03:41]} 8. dxe4 {[%emt 0:01:36]} Nb6 {[%emt 0:08:06] The position is equal.} 9. b3 {[%emt 0:03:30]} Qe7 {[%emt 0:04:58]} 10. h3 $146 {[%emt 0:04:16]} (10. a3 Bd7 11. Bb2 Rad8 12. Re1 a5 13. Qe2 Bc6 14. Nh4 g6 15. Bf3 Ne8 16. Bg4 {0-1 Mueller,U (2175)-Hoffterheide,T Ruhrgebiet VK3 9697 1996}) 10... Rd8 {[%emt 0:05:56] Not much happening anymore} 11. Qe2 {[%emt 0:06:42]} Be6 {[%emt 0:09:40]} 12. Bb2 {[%emt 0:04:34][%cal Oa2a4]} Nfd7 {[%emt 0:01:54]} 13. Rfd1 {[%emt 0:14:15]} Ba3 {[%emt 0:06:24]} 14. Bxa3 {[%emt 0:05:00]} Qxa3 {[%emt 0:00:06]} 15. Qe3 {[%emt 0:03:10]} f6 {[%emt 0:04:23]} 16. Nb1 {[%emt 0:08:40]} Qc5 {[%emt 0:02:16]} 17. Qxc5 {[%emt 0:00:23]} Nxc5 {[%emt 0:00:06]} 18. Nc3 {[%emt 0:00:04]} c6 {[%emt 0:00:48] The position is symmetric and equal} 19. Kf1 {[%emt 0:02:50]} a5 {[%emt 0:03:13]} 20. a4 {[%emt 0:01:44]} Na6 {[%emt 0:01:21]} 21. Rxd8+ {[%emt 0:10:59]} Rxd8 {[%emt 0:00:06]} 22. Rd1 {[%emt 0:00:33] Against c5} Rc8 {[%emt 0:04:55]} (22... Rxd1+ $15 23. Nxd1 Nb4) 23. Rd6 {[%emt 0:05:14]} Kf7 {[%emt 0:01:01]} 24. Rd2 {[%emt 0:01:47]} Ke7 {[%emt 0:02:19]} 25. Nd1 {[%emt 0:01:52]} Nd7 {[%emt 0:02:43]} 26. Ne3 {[%emt 0:00:49]} (26. Nc3 $15) 26... Ndc5 {[%emt 0:01:44]} 27. Ne1 {[%emt 0:00:23]} ({Better is} 27. Nh4) 27... b5 $17 {[%emt 0:02:55]} 28. axb5 {[%emt 0:00:06]} cxb5 {[%emt 0:00:04]} 29. Rd1 {[%emt 0:00:33]} a4 {[%emt 0:02:51]} 30. bxa4 {[%emt 0:00:03]} bxa4 {[%emt 0:00:28]} ({Don't take} 30... Nxa4 31. f4 $15) 31. Ra1 {[%emt 0:01:45] [#]} Nc7 $1 {[%emt 0:03:39]} 32. Ke2 {[%emt 0:02:30]} Nb5 {[%emt 0:01:00]} 33. Kd2 {[%emt 0:02:06] Against Nc3} Nd6 {[%emt 0:04:22]} (33... a3 $142 {[%cal Ob5c3]} 34. Nd3 Nc3 35. Nf5+ (35. Nxc5 $2 Rxc5 36. f3 a2 $19) 35... Bxf5 36. Nxc5 Rxc5 37. exf5 a2) 34. f3 {[%emt 0:02:17]} Nb5 {[%emt 0:07:47] White must now prevent ...Nd4.} 35. Bf1 {[%emt 0:01:47] [#]} Nd4 {[%emt 0:00:13]} 36. Ra3 {[%emt 0:00:59] Prevents Ncb3+.} g6 {[%emt 0:03:20]} 37. Bd3 {[%emt 0:10:22]} (37. Kd1 $142) 37... Rb8 {[%emt 0:01:29]} ({Black should try} 37... Bxh3 38. Nd5+ Kf7) 38. h4 {[%emt 0:00:41]} Rb1 $36 {[%emt 0:01:54][%mdl 2048] White is under strong pressure. Black has more active pieces.} 39. Bf1 {[%emt 0:00:55]} (39. g4 $17) 39... f5 $19 {[%emt 0:01:37]} 40. exf5 {[%emt 0:00:31]} gxf5 {[%emt 0:00:13]} 41. c3 $2 {[%emt 0:00:55]} (41. Bd3) 41... Ncb3+ {[%emt 0:00:54]} 42. Kd3 {[%emt 0:01:04]} Rxe1 {[%emt 0:00:31] Weighted Error Value: White=0.34/Black=0.11 (very precise)   Mistake:       	White=5     	Black=3      Inaccurate:     	White=3     	Black=1      OK:         	White=8     	Black=14     Best:        	White=2     	Black=1} 0-1

[Event "SixDays Budapest January IM-A 2025"]
[Site "Budapest"]
[Date "2025.01.29"]
[Round "6.5"]
[White "Fodor, Balazs"]
[Black "Pribelszky, Bence Daniel"]
[Result "0-1"]
[Annotator "TA"]
[ECO "A40"]
[WhiteElo "2214"]
[BlackElo "2391"]
[PlyCount "26"]
[EventDate "2025.01.24"]
[EventType "tourn"]
[EventCountry "HUN"]
[SourceTitle "playchess.com"]
[Source "ChessBase"]
[SourceQuality "1"]
[TimeControl "5400+30"]

{[%evp 9,26,0,0,0,0,0,-2,0,0,-8,0,0,0,-99,-14,-133,-133,-380,-372]} 1. d4 {[%emt 0:00:04]} g6 {[%emt 0:12:52]} 2. c4 {[%emt 0:00:09]} Bg7 {[%emt 0:00:06]} 3. e4 {[%emt 0:00:45]} Nc6 {[%emt 0:00:19]} 4. Be3 {[%emt 0:00:37]} e5 {[%emt 0:00:08]} 5. Nf3 {[%emt 0:00:06]} exd4 {[%emt 0:00:37]} 6. Nxd4 {[%emt 0:00:08] A40: Unusual replies to 1 d4.} Qf6 {[%emt 0:00:05] 6...Nge7 is vanishing.} 7. Nxc6 {[%emt 0:05:04]} dxc6 {[%emt 0:00:11]} 8. Nc3 {[%emt 0:00:18] The position is equal.} Qe7 {[%emt 0:01:05]} 9. Qb3 $146 {[%emt 0:10:40]} (9. Qc2 Nh6 10. h3 f5 11. O-O-O O-O 12. f4 fxe4 13. g4 Nf7 14. Re1 b6 15. Bd2 {½-½ Le,Q (2709)-Xiong,J (2709) PNWCC Super SOS 2020 (5)}) 9... Nh6 {[%emt 0:13:34]} 10. Be2 {[%emt 0:08:50]} O-O {[%emt 0:04:51]} 11. O-O-O {[%emt 0:18:49]} (11. O-O $11 {remains equal.}) 11... a5 {[%emt 0:10:56]} (11... Ng4 $17 {Threatens to win with ...Nxe3.} 12. Bxg4 Bxg4) 12. f3 {[%emt 0:05:39]} (12. h3 $11) 12... Nf5 $17 {[%emt 0:04:54]} 13. Nb1 $2 {[%emt 0:12:32] [#]} (13. Bf2 $17 {was called for.} Qg5+ 14. Kb1 Qxg2 15. Rhf1) 13... a4 {[%emt 0:01:30] White did not feel at home in the position after the opening.   Weighted Error Value: White=0.82/Black=0.17 (very precise)   Loses game:     	White=1     	---        Mistake:       	White=2     	Black=1      OK:         	White=1     	Black=4      Best:        	White=1     	Black=1} 0-1

[Event "SixDays Budapest January IM-A 2025"]
[Site "Budapest"]
[Date "2025.01.30"]
[Round "7.1"]
[White "Pribelszky, Bence Daniel"]
[Black "Karacsonyi, Kata"]
[Result "1-0"]
[Annotator "TA"]
[ECO "D05"]
[WhiteElo "2391"]
[BlackElo "2183"]
[PlyCount "93"]
[EventDate "2025.01.24"]
[EventType "tourn"]
[EventCountry "HUN"]
[SourceTitle "playchess.com"]
[Source "ChessBase"]
[SourceQuality "1"]
[TimeControl "5400+30"]

{[%evp 16,93,10,8,10,8,1,0,21,0,98,91,93,88,93,86,96,74,80,81,83,60,74,66,74,86,193,179,186,200,159,193,174,189,222,216,225,206,262,251,242,229,410,408,410,408,392,392,498,506,538,522,537,554,567,510,547,547,717,703,29973,29976,29975,29975,29978,29979,29982,29983,29983,29984,29984,29985,29985,29986,29986,29987,29988,29989,29989,29990]} 1. e3 {[%emt 0:05:13]} Nf6 {[%emt 0:04:14]} 2. Nf3 {[%emt 0:00:15]} e6 {[%emt 0:00:14]} 3. d4 {[%emt 0:00:46]} d5 {[%emt 0:00:09]} 4. Bd3 {[%emt 0:00:09]} Bd6 {[%emt 0:01:57]} 5. O-O {[%emt 0:00:16]} b6 {[%emt 0:01:29]} 6. b3 {[%emt 0:00:28]} Bb7 {[%emt 0:00:39]} 7. Bb2 {[%emt 0:00:22]} O-O {[%emt 0:01:44]} 8. Nbd2 {[%emt 0:00:31] The main line 8.Nbd2 scores better than 8.c4.} c5 {[%emt 0:00:49]} 9. Qe2 {[%emt 0:01:18]} Ne4 {[%emt 0:02:42] D05: Colle System with ...e6.} 10. Rad1 {[%emt 0:04:25]} Nd7 {[%emt 0:05:18]} 11. Ne5 {[%emt 0:12:10] [#]} f5 {[%emt 0:30:53] The position is equal.} 12. c4 {[%emt 0:07:36]} Bxe5 $146 {[%emt 0:07:33]} (12... Nxd2 $11 {remains equal.} 13. Rxd2 (13. Qxd2 cxd4 14. exd4 Rc8 $11) 13... cxd4 14. exd4 Nxe5 15. dxe5 Bc5) (12... Nxd2 13. Rxd2 Qc7 14. cxd5 Bxd5 15. Nxd7 Qxd7 16. dxc5 bxc5 17. Rfd1 Qc7 18. h3 Rad8 {1-0 Patel,Z (1929)-Shankar,Y (1665) British Rapidplay 2024 (1)}) 13. dxe5 $16 {[%emt 0:00:15]} Qc7 {[%emt 0:07:23]} 14. cxd5 {[%emt 0:04:16]} Nxd2 {[%emt 0:05:29]} 15. Rxd2 {[%emt 0:01:56]} Bxd5 {[%emt 0:07:24]} 16. e4 {[%emt 0:05:16]} fxe4 {[%emt 0:00:41]} 17. Bxe4 {[%emt 0:00:05]} Bxe4 {[%emt 0:05:44]} 18. Qxe4 {[%emt 0:00:06]} Rad8 {[%emt 0:01:04][%cal Od7f6]} 19. Rfd1 {[%emt 0:05:11] Hoping for Qc4. White has more active pieces.} Nb8 {[%emt 0:00:58]} 20. Qc4 {[%emt 0:03:19]} (20. Qg4 {simplifies} Rde8 21. Rd6 Qc8 22. Bc3) 20... Rxd2 {[%emt 0:02:57]} (20... Rde8 $16) 21. Qxe6+ $18 {[%emt 0:02:01]} (21. Rxd2 $6 Qf7 $16) 21... Qf7 {[%emt 0:00:06]} 22. Qxf7+ {[%emt 0:00:08]} (22. Rxd2 $2 {perishes.} Qxe6 23. f3 Nc6 $19) 22... Kxf7 {[%emt 0:00:03]} 23. Rxd2 {[%emt 0:00:04][%mdl 4096] Endgame KRB-KRN. White is a pawn up.} Ke7 {[%emt 0:00:28]} 24. g3 {[%emt 0:05:33]} g5 {[%emt 0:00:27]} 25. Rd6 {[%emt 0:03:07]} Na6 {[%emt 0:05:48]} 26. Rh6 {[%emt 0:03:56]} Rf7 {[%emt 0:00:12]} 27. e6 {[%emt 0:01:11]} Rf5 {[%emt 0:00:58]} 28. Bc3 {[%emt 0:01:23]} Nb4 $2 {[%emt 0:01:36]} (28... Rd5 {was necessary.} 29. Rxh7+ Kxe6 30. Rxa7 Nb8) 29. Bxb4 {[%emt 0:00:37]} (29. Rxh7+ Kxe6 30. Bxb4 (30. Rxa7 Nd3 $16) 30... cxb4 31. Rxa7 Kd5 $18) 29... cxb4 {[%emt 0:00:03]} 30. Rxh7+ {[%emt 0:00:06]} Kxe6 {[%emt 0:00:06]} 31. Rxa7 {[%emt 0:00:06] KR-KR. White is two pawns up.} Kd5 {[%emt 0:00:35]} 32. Rc7 {[%emt 0:00:49]} b5 {[%emt 0:00:31]} 33. g4 {[%emt 0:02:43]} Re5 {[%emt 0:01:53]} 34. Rd7+ {[%emt 0:00:46]} Ke4 {[%emt 0:00:06]} 35. Kg2 {[%emt 0:01:21]} Rc5 {[%emt 0:00:50]} 36. Rf7 {[%emt 0:00:51]} Rd5 {[%emt 0:04:28] [#]} 37. Rf5 $1 {[%emt 0:01:28] White threatens Rxd5 and mate.} Rxf5 {[%emt 0:00:10]} (37... Rd2 38. Rxg5) 38. gxf5 {[%emt 0:00:03] White mates.} Kxf5 {[%emt 0:00:05] KP-KP. White is a pawn up.} 39. Kf3 {[%emt 0:00:02]} Ke5 {[%emt 0:00:17]} 40. Kg4 {[%emt 0:00:21]} Kd4 {[%emt 0:00:53]} 41. Kxg5 {[%emt 0:00:06]} Kc3 {[%emt 0:00:04]} 42. f4 {[%emt 0:00:11]} Kb2 {[%emt 0:00:11]} 43. f5 {[%emt 0:00:04]} Kxa2 {[%emt 0:00:06]} 44. f6 {[%emt 0:00:04]} Kxb3 {[%emt 0:00:06]} 45. f7 {[%emt 0:00:06]} Kc3 {[%emt 0:00:32]} 46. f8=Q {[%emt 0:00:08]} b3 {[%emt 0:00:03]} 47. Qc5+ {[%emt 0:00:07] Black got outplayed after the opening.   Weighted Error Value: White=0.04 (flawless) /Black=0.50  Mistake:       	---       	Black=3      Inaccurate:     	---       	Black=2      OK:         	White=15    	Black=8      Best:        	White=3     	Black=1} 1-0

[Event "SixDays Budapest January IM-A 2025"]
[Site "Budapest"]
[Date "2025.01.30"]
[Round "7.3"]
[White "Papp, Levente"]
[Black "Kustar, Sandor"]
[Result "1-0"]
[Annotator "TA"]
[ECO "A45"]
[WhiteElo "2386"]
[BlackElo "2240"]
[PlyCount "45"]
[EventDate "2025.01.24"]
[EventType "tourn"]
[EventCountry "HUN"]
[SourceTitle "playchess.com"]
[Source "ChessBase"]
[SourceQuality "1"]
[TimeControl "5400+30"]

{[%evp 17,45,0,0,3,0,-15,-5,-13,0,-33,-19,-43,-17,-14,-28,-23,0,-17,-27,-22,6,5,12,5,6,10,16,0,298,302]} 1. d4 {[%emt 0:06:15]} Nf6 {[%emt 0:00:24]} 2. Bf4 {[%emt 0:00:32]} g6 {[%emt 0:02:01]} 3. Nc3 {[%emt 0:00:37]} d5 {[%emt 0:00:35]} 4. Nf3 {[%emt 0:01:12]} Bg7 {[%emt 0:00:32]} 5. e3 {[%emt 0:00:06]} O-O {[%emt 0:07:35]} 6. Be2 {[%emt 0:00:14]} c5 {[%emt 0:03:10]} 7. O-O {[%emt 0:00:37]} cxd4 {[%emt 0:04:53]} 8. exd4 {[%emt 0:00:21]} Nc6 {[%emt 0:00:14]} 9. Ne5 {[%emt 0:00:34]} Bf5 {[%emt 0:03:23]} 10. Nxc6 {[%emt 0:01:48] D00: 1 d4 d5: Unusual lines.} bxc6 {[%emt 0:00:06]} 11. Be5 {[%emt 0:00:05]} Bh6 {[%emt 0:02:54]} 12. Bd3 {[%emt 0:11:50] The position is equal.} Bg4 {[%emt 0:02:44]} 13. f3 $146 {[%emt 0:04:36]} (13. Be2 Bc8 14. Re1 Nd7 15. Bg3 Bg7 16. Bf1 Re8 17. Na4 e5 18. dxe5 Nxe5 19. f3 Bf5 20. Qd2 h5 21. Bf2 Qc7 22. Rad1 Rad8 23. b3 d4 24. Nc5 {½-½ Pritchett,C (2318)-Arakhamia Grant,K (2413) SCO-ch Edinburgh 2003 (7)}) 13... Bc8 {[%emt 0:00:20]} 14. Ne2 {[%emt 0:11:26]} Nd7 {[%emt 0:02:32]} 15. Bg3 $1 {[%emt 0:00:35]} c5 {[%emt 0:02:06] Hoping for ...c4.} 16. c3 {[%emt 0:08:47][%cal Bc2c3,Bc3c4,Bc4c5][%mdl 32]} Bg7 {[%emt 0:02:20]} 17. Bb5 {[%emt 0:03:56]} Qb6 {[%emt 0:04:13] Prevents Bc6.} 18. Qa4 {[%emt 0:01:24]} Nb8 {[%emt 0:00:33]} (18... cxd4 $5 19. cxd4 Nf6 $15) 19. dxc5 {[%emt 0:00:42]} Qxc5+ {[%emt 0:00:25]} 20. Bf2 {[%emt 0:01:12]} Qd6 {[%emt 0:07:38]} 21. c4 {[%emt 0:03:48]} Nd7 {[%emt 0:26:41]} 22. Rfd1 {[%emt 0:06:59] And now Bc6 would win.} (22. Bxa7 $2 {loses.} Qc7 (22... Bxb2 $2 23. Rab1 $19) (22... Nb6 $2 23. Qa5 $19) 23. cxd5 Bxb2 $19 (23... Qxa7+ $2 24. Qxa7 Rxa7 25. Nc3 $19) (23... Rxa7 $2 24. Qb4 $19)) 22... Nb6 $2 {[%emt 0:06:23][%mdl 8192] [#]} (22... a6 $11 {and Black stays safe.}) 23. c5 $1 {[%emt 0:01:04] Weighted Error Value: White=0.08 (flawless) /Black=0.45  Loses game:     	---       	Black=1      Inaccurate:     	White=1     	Black=2      OK:         	White=4     	Black=1      Best:        	White=1     	---        Strong:       	White=2     	---} 1-0

[Event "SixDays Budapest January IM-A 2025"]
[Site "Budapest"]
[Date "2025.01.30"]
[Round "7.4"]
[White "Kiremitciyan, Ari"]
[Black "Varga, Zoltan"]
[Result "1/2-1/2"]
[Annotator "TA"]
[ECO "D00"]
[WhiteElo "2251"]
[BlackElo "2304"]
[PlyCount "125"]
[EventDate "2025.01.24"]
[EventType "tourn"]
[EventCountry "HUN"]
[SourceTitle "playchess.com"]
[Source "ChessBase"]
[SourceQuality "1"]
[TimeControl "5400+30"]

{[%evp 9,125,65,68,63,69,50,62,36,36,35,33,44,49,37,39,40,45,30,43,34,58,50,87,52,93,54,107,57,79,24,18,22,23,14,27,13,21,15,36,0,0,0,4,-8,8,9,12,0,8,13,10,18,10,14,12,0,5,0,4,1,14,0,0,0,0,0,0,0,6,0,25,0,0,0,2,0,0,0,10,8,22,0,0,0,0,0,0,0,0,0,0,0,0,0,0,0,0,0,0,0,0,0,0,0,0,0,0,0,0,0,0,0,0,0,0,0,0,0]} 1. d4 {[%emt 0:00:03]} d5 {[%emt 0:15:57]} 2. Bf4 {[%emt 0:00:12]} c6 {[%emt 0:00:37]} 3. e3 {[%emt 0:00:19]} Qb6 {[%emt 0:00:25]} 4. Qc1 {[%emt 0:00:10]} Bg4 {[%emt 0:01:02]} 5. h3 {[%emt 0:00:47]} Bh5 {[%emt 0:00:10]} 6. c4 {[%emt 0:00:50] D00: 1 d4 d5: Unusual lines.} dxc4 {[%emt 0:02:51]} 7. Bxc4 {[%emt 0:00:43]} e6 {[%emt 0:00:07]} 8. Nd2 {[%emt 0:01:18] White is slightly better. Active counter play!} Nf6 {[%emt 0:02:16]} 9. Ngf3 {[%emt 0:00:49]} Nbd7 $146 {[%emt 0:00:05][%cal Bb8d7,Bd7b6,Bb6d5][%mdl 32]} (9... Be7 10. O-O O-O 11. Bd3 Rc8 12. a3 Bg6 13. Bxg6 hxg6 14. b4 Nbd7 15. Nc4 Qa6 {0-1 Hambleton,A (2420)-Barria Zuniga,D (2341) Titled Tuesday intern op 18th Jun Early blitz 2024 (11)}) 10. O-O {[%emt 0:01:41]} Be7 {[%emt 0:04:27]} 11. Be2 {[%emt 0:05:06]} O-O {[%emt 0:00:07]} 12. Nc4 {[%emt 0:03:17]} Qd8 {[%emt 0:00:43]} 13. Rd1 {[%emt 0:00:49]} a5 {[%emt 0:00:32]} 14. Qc2 {[%emt 0:04:00]} Nb6 {[%emt 0:02:17]} 15. Nce5 {[%emt 0:02:39][%csl Oe5] Strong Square White (e5)} Nbd5 {[%emt 0:00:57]} 16. Bh2 {[%emt 0:01:27]} a4 {[%emt 0:00:08]} 17. a3 {[%emt 0:00:45]} Qa5 {[%emt 0:02:43]} ({Black should try} 17... Bd6 $14) 18. Nc4 {[%emt 0:06:20]} (18. g4 $16 Bg6 19. Nxg6 hxg6 20. g5) 18... Qa7 {[%emt 0:07:07]} 19. Nfe5 {[%emt 0:03:03]} ({White should try} 19. e4 $16) 19... Bxe2 $11 {[%emt 0:10:18]} 20. Qxe2 {[%emt 0:00:02]} Nb6 {[%emt 0:00:14]} 21. Nd2 {[%emt 0:05:44]} Qa6 {[%emt 0:00:11]} 22. Qf3 {[%emt 0:11:57]} Rad8 {[%emt 0:01:25]} 23. Rac1 {[%emt 0:02:36]} Nfd7 {[%emt 0:02:02][%cal Bf6d7,Bd7b6,Bb6c4,Bc4a5,Ba5b3,Bb3c1][%mdl 32]} 24. Nec4 Nxc4 {[%emt 0:02:23]} 25. Nxc4 {[%emt 0:06:17]} Nb6 {[%emt 0:00:28]} 26. Ne5 {[%emt 0:01:03]} Qb5 {[%emt 0:03:10][%cal Of7f6]} 27. Nd3 {[%emt 0:00:56]} Nc4 {[%emt 0:03:22]} 28. Qe2 {[%emt 0:03:26]} Na5 {[%emt 0:01:47]} 29. Bc7 {[%emt 0:03:31]} Nb3 {[%emt 0:06:59]} 30. Bxd8 {[%emt 0:00:41]} Nxc1 {[%emt 0:00:06]} 31. Rxc1 {[%emt 0:00:28]} Rxd8 {[%emt 0:00:41]} 32. Qc2 {[%emt 0:00:42]} Ra8 {[%emt 0:03:59] Not much happening anymore} 33. Qc4 {[%emt 0:03:50] [#]} Qxc4 {[%emt 0:05:28]} 34. Rxc4 {[%emt 0:00:02][%mdl 4096] Endgame KRB-KRN} f6 {[%emt 0:00:05]} 35. Nc5 {[%emt 0:02:26]} b5 {[%emt 0:00:38]} 36. Rc2 {[%emt 0:00:41]} Bxc5 {[%emt 0:08:30]} 37. Rxc5 {[%emt 0:00:02] KR-KR} Rc8 {[%emt 0:00:48]} 38. f4 {[%emt 0:05:31]} Kf7 {[%emt 0:00:18]} 39. Kf2 {[%emt 0:00:56]} f5 {[%emt 0:01:10]} 40. g4 {[%emt 0:01:15]} g6 {[%emt 0:00:42] The position is equal.} 41. Kf3 {[%emt 0:00:15]} Ke7 {[%emt 0:00:45]} 42. e4 {[%emt 0:00:36]} fxe4+ {[%emt 0:00:14]} 43. Kxe4 {[%emt 0:00:01]} Kd6 {[%emt 0:00:04]} 44. h4 {[%emt 0:00:29]} Rg8 {[%emt 0:00:38]} 45. Kf3 {[%emt 0:03:28]} Rb8 {[%emt 0:02:44]} 46. Ke4 {[%emt 0:00:33]} b4 {[%emt 0:00:55]} 47. Ra5 {[%emt 0:00:52]} bxa3 {[%emt 0:00:04]} 48. bxa3 {[%emt 0:00:08]} Rb1 {[%emt 0:00:01]} 49. Rxa4 {[%emt 0:01:29]} Re1+ {[%emt 0:00:05]} 50. Kd3 {[%emt 0:01:22]} Rg1 {[%emt 0:04:57]} 51. g5 {[%emt 0:00:16] And now Ra7 would win.} Rh1 {[%emt 0:00:10]} 52. Ra7 {[%emt 0:01:54]} Rxh4 {[%emt 0:00:04]} 53. Ke3 {[%emt 0:02:22]} Rh3+ {[%emt 0:01:02]} 54. Ke4 {[%emt 0:00:19]} Rh1 {[%emt 0:00:07]} 55. a4 {[%emt 0:00:26]} Re1+ {[%emt 0:00:02]} 56. Kd3 {[%emt 0:01:33]} Rd1+ {[%emt 0:00:27]} 57. Kc3 {[%emt 0:03:40][%cal Oa4a5]} Rc1+ {[%emt 0:00:17]} 58. Kd2 {[%emt 0:01:05]} Rf1 {[%emt 0:01:57]} 59. Ke3 {[%emt 0:04:18][%cal Oa4a5]} Re1+ {[%emt 0:00:03]} 60. Kd3 {[%emt 0:00:22]} Rd1+ {[%emt 0:00:15]} 61. Kc3 {[%emt 0:02:02]} Rc1+ {[%emt 0:00:12]} 62. Kd3 {[%emt 0:01:17]} Rd1+ {[%emt 0:00:06]} 63. Kc3 {Weighted Error Value: White=0.10 (very precise) /Black=0.07 (flawless)   Mistake:       	White=2     	Black=1      Inaccurate:     	White=4     	Black=2      OK:         	White=12    	Black=30     Best:        	---       	Black=3} 1/2-1/2